Department Family,Entity,Date,Expense Type,Expense Area,Supplier,Transaction Number,Amount
DOH,London Ambulance Service NHS Trust,01/08/2020,Medical Equipment,Managed Stores,Teleflex Medical,517657,67800
DOH,London Ambulance Service NHS Trust,12/08/2020,Vehicle Recovery,Fleet Support Services,The Mansfield Group,518786,53948.04
DOH,London Ambulance Service NHS Trust,01/08/2020,Medical Equipment,Managed Stores,Teleflex Medical,528220,-52884
DOH,London Ambulance Service NHS Trust,12/08/2020,Technical Support - Contract,"Quality, Improvemnt & Learning",Allocate Software Limited,530563,55566
DOH,London Ambulance Service NHS Trust,01/08/2020,Clinical Waste,Covid-19 - Property,Tradebe Healthcare National Ltd,530913,30560.4
DOH,London Ambulance Service NHS Trust,01/08/2020,Occupational Health Fees,Healthy Workplace,People Asset Management Ltd,533719,27534.37
DOH,London Ambulance Service NHS Trust,12/08/2020,Vehicle Recovery,Fleet Support Services,The Mansfield Group,536095,47768.06
DOH,London Ambulance Service NHS Trust,12/08/2020,Vehicle Recovery,Fleet Support Services,The Mansfield Group,536101,48223.58
DOH,London Ambulance Service NHS Trust,12/08/2020,Contract Labour,Vehicle Resouce Centre,Churchill Contract Services Ltd,536730,119744.2
DOH,London Ambulance Service NHS Trust,05/08/2020,Fleet Maintenance,Covid-19 - Fleet,Aa Developments Ltd,537751,35694.21
DOH,London Ambulance Service NHS Trust,01/08/2020,Cad Tools Maintenance,Cad Support,Priority Dispatch,538867,100150.98
DOH,London Ambulance Service NHS Trust,01/08/2020,Rent,Hart Estates,Jones Lang Lasalle (Rent Only),539858,30704.82
DOH,London Ambulance Service NHS Trust,01/08/2020,Service Charges,Hart Estates,Jones Lang Lasalle (Rent Only),539858,858.18
DOH,London Ambulance Service NHS Trust,01/08/2020,Vehicles,Capital,Telent Technology Services Ltd,540096,74682
DOH,London Ambulance Service NHS Trust,01/08/2020,Agency Nurses,Covid-19 - Critical Care Trans,Hays Specialist Recruitment Ltd,541722,36332.84
DOH,London Ambulance Service NHS Trust,12/08/2020,Contract Labour,Vehicle Resouce Centre,Churchill Contract Services Ltd,542176,119744.2
DOH,London Ambulance Service NHS Trust,01/08/2020,Make Ready Support,Make Ready Service,Interserve Hospital Services,542506,264526.73
DOH,London Ambulance Service NHS Trust,01/08/2020,Seconded Staff Operational,Hillingdon (B5) Group,Ministry Of Defence,542588,59692
DOH,London Ambulance Service NHS Trust,01/08/2020,Professional Fees,Covid-19 - Corp & Support,Pa Consulting Services Ltd,543337,119688
DOH,London Ambulance Service NHS Trust,12/08/2020,Computer Hardware,Capital,Dell Computer Corporation Ltd,543474,84733.49
DOH,London Ambulance Service NHS Trust,01/08/2020,Medical & Surgical Items,Covid-19 - Logistics,Nhs Supply Chain,543669,130055.8
DOH,London Ambulance Service NHS Trust,05/08/2020,Make Ready Support,Make Ready Service,Interserve Hospital Services,543819,395106
DOH,London Ambulance Service NHS Trust,05/08/2020,Make Ready Support,Covid-19 - Logistics,Interserve Hospital Services,543826,111802
DOH,London Ambulance Service NHS Trust,01/08/2020,Make Ready Support,Covid-19 - Logistics,Interserve Hospital Services,543827,21071
DOH,London Ambulance Service NHS Trust,01/08/2020,Make Ready Support,Covid-19 - Logistics,Interserve Hospital Services,543828,21000
DOH,London Ambulance Service NHS Trust,01/08/2020,Make Ready Support,Covid-19 - Logistics,Interserve Hospital Services,543839,21071
DOH,London Ambulance Service NHS Trust,01/08/2020,Make Ready Support,Covid-19 - Logistics,Interserve Hospital Services,543840,131174
DOH,London Ambulance Service NHS Trust,01/08/2020,Make Ready Support,Covid-19 - Logistics,Interserve Hospital Services,543841,21071
DOH,London Ambulance Service NHS Trust,01/08/2020,External Training Services,Epcr Revenue Project Cost,Healthcare Clinical Informatics Limited,544113,36000
DOH,London Ambulance Service NHS Trust,01/08/2020,Medical & Surgical Items,Covid-19 - Logistics,Greenham,544665,27767.04
DOH,London Ambulance Service NHS Trust,01/08/2020,Private Ambulance Hire,Ops Central - Private Amb,St John Ambulance Londonprince,544666,39638.58
DOH,London Ambulance Service NHS Trust,05/08/2020,Phone & Fax Line Rental,Networks,Bt Plc,544818,89613.37
DOH,London Ambulance Service NHS Trust,01/08/2020,Medical & Surgical Items,Covid-19 - Logistics,Full Support Healthcare Ltd,545257,42750
DOH,London Ambulance Service NHS Trust,01/08/2020,Private Ambulance Hire,Ops Central - Private Amb,Falck Uk Ambulance Service Ltd,545455,53977.24
DOH,London Ambulance Service NHS Trust,01/08/2020,Private Ambulance Hire,Ops Central - Private Amb,St John Ambulance Londonprince,545458,35005.38
DOH,London Ambulance Service NHS Trust,01/08/2020,Medical & Amb Equip Stock Var,Covid-19 - Critical Care Trans,Global Resilience Services Ltd (T/A Grs Ltd),545580,30756
DOH,London Ambulance Service NHS Trust,01/08/2020,Private Ambulance Hire,Ops Central - Private Amb,Falck Uk Ambulance Service Ltd,545813,55912.8
DOH,London Ambulance Service NHS Trust,01/08/2020,Tyres,Fleet Support Services,Ats Euromaster Ltd,546002,35289.32
DOH,London Ambulance Service NHS Trust,12/08/2020,Computer Software Maintenance,111 Nel Operations,Bt Plc,546076,26048
DOH,London Ambulance Service NHS Trust,05/08/2020,Furniture & Fittings,Capital,Bhc Healthcare Furniture Ltd,546900,48954.18
DOH,London Ambulance Service NHS Trust,12/08/2020,Training Accommodation,International Recruitment 2021,The Independents Hotel Reservations Ltd,546935,45279
DOH,London Ambulance Service NHS Trust,01/08/2020,Cleaning Of Premises,Covid-19 - Property,Lakethorne Ltd,546963,28575.1
DOH,London Ambulance Service NHS Trust,01/08/2020,Occupational Health Fees,Healthy Workplace,People Asset Management Ltd,547043,56828.59
DOH,London Ambulance Service NHS Trust,14/08/2020,Professional Fees,Covid-19 - Im&T,Venn Group,547059,49545.61
DOH,London Ambulance Service NHS Trust,12/08/2020,Computer Software,Covid-19 - Corp & Support,Goodsam Ltd,547232,67956.78
DOH,London Ambulance Service NHS Trust,12/08/2020,Professional Fees,Covid-19 - Im&T,Bt Plc,547382,64501.4
DOH,London Ambulance Service NHS Trust,12/08/2020,Mobile Phone Calls,Telecommunications,Vodafone Limited,547405,88614.66
DOH,London Ambulance Service NHS Trust,12/08/2020,Cleaning Of Premises,Property Management,Lakethorne Ltd,547453,105334.25
DOH,London Ambulance Service NHS Trust,12/08/2020,Make Ready Support,Make Ready Service,Interserve Hospital Services,548045,264526.73
DOH,London Ambulance Service NHS Trust,12/08/2020,Medical & Surgical Items,Covid-19 - Logistics,Proact Medical Ltd,548050,29743.2
DOH,London Ambulance Service NHS Trust,01/08/2020,Medical & Surgical Items,Covid-19 - Logistics,Nhs Supply Chain,548065,-130053.84
DOH,London Ambulance Service NHS Trust,01/08/2020,Medical & Surgical Items,Covid-19 - Logistics,Nhs Supply Chain,548069,-561321
DOH,London Ambulance Service NHS Trust,14/08/2020,Fleet Maintenance,Covid-19 - Fleet,Aa Developments Ltd,548425,529449
DOH,London Ambulance Service NHS Trust,14/08/2020,Pts Control Maintenance,Systems,Insight Direct (Uk) Ltd,548510,57186.65
DOH,London Ambulance Service NHS Trust,14/08/2020,Taxis & Mini Cabs,Csu,Addison Lee,548669,26492.44
DOH,London Ambulance Service NHS Trust,12/08/2020,Vehicle Recovery,Fleet Support Services,The Mansfield Group,548726,27319.68
DOH,London Ambulance Service NHS Trust,12/08/2020,Computer Software Maintenance,Covid-19 - Im&T,Daisy Communications Ltd,549009,26340.44
DOH,London Ambulance Service NHS Trust,12/08/2020,Network Equipment & Services,Capital,Daisy Communications Ltd,549009,186855.98
DOH,London Ambulance Service NHS Trust,19/08/2020,Private Ambulance Hire,Ops Central - Private Amb,Falck Uk Ambulance Service Ltd,549107,51372.38
DOH,London Ambulance Service NHS Trust,21/08/2020,Private Ambulance Hire,Ops Central - Private Amb,Falck Uk Ambulance Service Ltd,550744,48215.49
DOH,London Ambulance Service NHS Trust,21/08/2020,Private Ambulance Hire,Ops Central - Private Amb,Falck Uk Ambulance Service Ltd,550745,52538.88
DOH,London Ambulance Service NHS Trust,21/08/2020,Private Ambulance Hire,Ops Central - Private Amb,St John Ambulance Londonprince,550748,36361.17
DOH,London Ambulance Service NHS Trust,21/08/2020,Managed Service - Adv Prac,111 Nel Operations,Hays Specialist Recruitment Ltd,551240,272008.96
DOH,London Ambulance Service NHS Trust,21/08/2020,Managed Service - Adv Prac,111 Sel Operations,Hays Specialist Recruitment Ltd,551240,182460.91
DOH,London Ambulance Service NHS Trust,21/08/2020,Managed Service - Call Handler,111 Nel Operations,Hays Specialist Recruitment Ltd,551240,74920.68
DOH,London Ambulance Service NHS Trust,21/08/2020,Managed Service - Call Handler,111 Sel Operations,Hays Specialist Recruitment Ltd,551240,120819.83
DOH,London Ambulance Service NHS Trust,21/08/2020,Managed Service - Gps,111 Nel Operations,Hays Specialist Recruitment Ltd,551240,307138.14
DOH,London Ambulance Service NHS Trust,21/08/2020,Managed Service - Gps,111 Sel Operations,Hays Specialist Recruitment Ltd,551240,358040.06
DOH,London Ambulance Service NHS Trust,21/08/2020,Managed Service - Adv Para Pra,111 Sel Operations,Hays Specialist Recruitment Ltd,551240,15486.79
DOH,London Ambulance Service NHS Trust,21/08/2020,Managed Service - Admin,111 Sel Operations,Hays Specialist Recruitment Ltd,551240,8513.57
DOH,London Ambulance Service NHS Trust,21/08/2020,Managed Service - Nurses,111 Nel Operations,Hays Specialist Recruitment Ltd,551240,102642.44
DOH,London Ambulance Service NHS Trust,21/08/2020,Managed Service - Nurses,111 Sel Operations,Hays Specialist Recruitment Ltd,551240,108803.7
DOH,London Ambulance Service NHS Trust,21/08/2020,Managed Service - Adv Para Pra,111 Nel Operations,Hays Specialist Recruitment Ltd,551240,2148.22
DOH,London Ambulance Service NHS Trust,21/08/2020,Risk Assessments,"Health, Safety & Security",Claire Lowe Consulting Ltd,551252,26520
DOH,London Ambulance Service NHS Trust,25/08/2020,Medical Gas,Director Of Ops,British Oxygen,76410,108669.19
DOH,London Ambulance Service NHS Trust,14/08/2020,CNST Contributions,Legal Services,NHS Litigation Authority,76213,470345.2
DOH,London Ambulance Service NHS Trust,14/08/2020,Liability to a 3rd Party Scheme,Legal Services,NHS Litigation Authority,76213,59094.4
DOH,London Ambulance Service NHS Trust,14/08/2020,Property Expenses Scheme,Legal Services,NHS Litigation Authority,76213,1807
DOH,London Ambulance Service NHS Trust,03/08/2020,Ensign Insurance Pre-Payment,Balance Sheet,QBE Insurance,75947,282968.75
DOH,London Ambulance Service NHS Trust,14/08/2020,BP Control Account,Balance Sheet,BP Oil,76213,210970.8
DOH,London Ambulance Service NHS Trust,28/08/2020,BP Control Account,Balance Sheet,BP Oil,76659,218743.26
